bitfinex/quotes_SOLUSD_20260113
["timestamp","ask_amount","ask_price","bid_price","bid_amount"]
[1768297605265,2.04953048,141.47,141.44,7.77003024]
[1768297605445,2.04953048,141.47,141.44,7.06969427]
[1768297605649,2.04953048,141.48,141.44,19.96969427]
[1768297605878,2.04953048,141.48,141.45,0.70033597]
[1768297606080,2.04953048,141.49,141.45,0.70033597]
[1768297606249,2.04953048,141.48,141.45,0.70033597]
[1768297606849,7.06683336,141.51,141.45,0.70033597]
[1768297607050,2.04953048,141.48,141.45,0.70033597]
[1768297607250,2.04953048,141.48,141.46,0.70033597]
[1768297607952,2.04953048,141.49,141.46,0.70033597]
[1768297608447,2.04953048,141.48,141.46,0.70033597]
[1768297608656,2.04953048,141.48,141.44,7.77026956]
[1768297608657,2.04953048,141.47,141.44,7.77026956]
[1768297608854,2.04953048,141.46,141.44,7.77026956]
[1768297609576,0.67387514,141.46,141.44,7.06993359]
[1768297609877,2.04953048,141.47,141.45,0.70033597]
[1768297610077,2.02429399,141.47,141.45,0.70033597]
[1768297610578,7.74599155,141.51,141.46,0.70033597]
[1768297610782,2.04953048,141.49,141.46,0.70033597]
[1768297611385,0.1,141.52,141.48,2.74986645]
[1768297611563,0.1,141.52,141.5,0.70033597]
[1768297612982,0.1,141.52,141.49,7.76785198]
[1768297613667,2.14953048,141.52,141.49,7.76785198]
[1768297614763,0.1,141.52,141.49,7.76785198]
[1768297615064,2.14953048,141.52,141.49,7.76785198]
[1768297615383,0.1,141.52,141.49,7.76785198]
[1768297615958,0.1,141.52,141.5,0.70033597]
[1768297617886,0.1,141.52,141.51,7.0666384]
[1768297618061,0.14431804,141.54,141.51,9.11616888]
[1768297618386,9.21429347,141.55,141.51,0.70033597]
[1768297618563,2.04953048,141.53,141.5,20.66744434]
[1768297619780,0.1,141.55,141.51,7.76683953]
[1768297619982,2.04953048,141.54,141.51,7.76683953]
[1768297620184,2.14953048,141.55,141.51,7.76683953]
[1768297620582,0.1,141.55,141.52,0.70033597]
[1768297621081,0.1,141.55,141.52,2.74986645]
[1768297621389,7.16329252,141.58,141.54,0.70033597]
[1768297621591,7.16329252,141.58,141.55,0.70033597]
[1768297621592,0.1,141.58,141.55,0.70033597]
[1768297621767,0.67461533,141.57,141.55,7.06464146]
[1768297621962,0.1,141.58,141.55,8.88902054]
[1768297622157,0.1,141.58,141.55,6.83949006]
[1768297622594,0.1,141.58,141.55,8.88902054]
[1768297623288,0.1,141.58,141.56,0.70033597]
[1768297623593,0.1,141.58,141.57,0.70033597]
[1768297625785,0.1,141.62,141.58,0.69787595]
[1768297626184,0.1,141.63,141.61,3.19456896]
[1768297626479,0.1,141.63,141.59,0.69787595]
[1768297626480,0.07477351,141.63,141.59,0.69787595]
[1768297626682,0.07477351,141.63,141.59,13.59787595]
[1768297626683,3.26934247,141.63,141.59,13.59787595]
[1768297627699,0.07477351,141.63,141.59,23.85480111]
[1768297628178,0.07477351,141.63,141.6,0.69787595]
[1768297629501,0.07477351,141.63,141.6,7.75989154]
[1768297629680,0.099,141.62,141.6,7.06201559]
[1768297630396,0.07477351,141.63,141.6,7.06201559]
[1768297631169,0.07477351,141.63,141.59,20.66034601]
[1768297632188,3.26934247,141.63,141.59,7.76034601]
[1768297632394,3.19456896,141.6,141.56,0.69787595]
[1768297632599,3.19456896,141.59,141.54,0.69787595]
[1768297632777,0.09998019,141.6,141.55,20.66220252]
[1768297632971,3.19456896,141.59,141.56,7.06408781]
[1768297633397,7.06181505,141.61,141.56,7.76196376]
[1768297633576,3.19456896,141.59,141.56,7.76196376]
[1768297634593,3.19456896,141.59,141.57,0.69787595]
[1768297634801,0.099,141.61,141.56,7.06408781]
[1768297634973,3.29455896,141.6,141.56,7.06408781]
[1768297635284,3.29455896,141.6,141.57,7.0635574]
[1768297635598,3.19456896,141.59,141.57,7.0635574]
[1768297635780,3.19456896,141.59,141.56,7.76822748]
[1768297636495,3.19456896,141.59,141.57,0.70423842]
[1768297637295,3.29454915,141.59,141.56,7.06398906]
[1768297637606,3.29454915,141.59,141.54,0.70423842]
[1768297637607,3.19456896,141.57,141.54,0.70423842]
[1768297637770,3.19456896,141.56,141.54,0.70423842]
[1768297638306,3.19456896,141.55,141.52,0.70423842]
[1768297638470,0.09999,141.57,141.52,0.70423842]
[1768297638676,3.19456896,141.53,141.52,0.70423842]
[1768297639209,3.19456896,141.54,141.52,0.70423842]
[1768297640094,3.19456896,141.53,141.5,7.77127142]
[1768297640283,3.19456896,141.52,141.5,7.77127142]
[1768297641907,3.19456896,141.52,141.5,0.70423842]
[1768297644202,7.16561771,141.53,141.48,7.77222408]
[1768297644401,3.19456896,141.53,141.5,0.70423842]
[1768297644697,0.099,141.55,141.5,0.70423842]
[1768297645098,3.19456896,141.53,141.5,0.70423842]
[1768297645492,3.19456896,141.53,141.49,7.7718757]
[1768297646111,0.1,141.56,141.5,0.70423842]
[1768297646412,3.19456896,141.54,141.5,0.70423842]
[1768297646799,3.19456896,141.53,141.5,0.70423842]
[1768297646984,6.00630675,141.63,141.55,0.70423842]
[1768297647186,6.00630675,141.63,141.55,3.19456896]
[1768297647187,7.06114955,141.62,141.55,3.19456896]
[1768297647429,3.19456896,141.6,141.56,7.06414241]
[1768297647912,7.77110908,141.61,141.56,7.06414241]
[1768297648222,3.90392342,141.61,141.56,7.06414241]
[1768297649182,0.70935446,141.61,141.57,0.70423842]
[1768297649384,3.90392342,141.61,141.57,10.96237921]
[1768297651007,10.96560084,141.61,141.57,0.70423842]
[1768297651907,7.77103188,141.61,141.57,0.70423842]
[1768297652106,10.96560084,141.61,141.57,0.70423842]
[1768297652408,3.90392342,141.61,141.57,7.76784086]
[1768297652589,0.70935446,141.61,141.57,7.76784086]
[1768297652984,3.90392342,141.61,141.57,7.76784086]
[1768297654003,0.70935446,141.61,141.57,7.76784086]
[1768297654307,3.90392342,141.61,141.57,7.76784086]
[1768297654507,10.25587249,141.62,141.58,0.70423842]
[1768297654721,7.06130353,141.62,141.58,0.70423842]
[1768297654893,3.19456896,141.62,141.6,57.9]
[1768297655301,3.19456896,141.62,141.6,57.04977351]
[1768297655896,3.19456896,141.61,141.6,57.04977351]
[1768297656101,3.19456896,141.61,141.56,23.86368156]
[1768297656314,3.19456896,141.6,141.57,0.70515153]
[1768297657395,3.19456896,141.61,141.57,7.76873008]
[1768297659919,3.19456896,141.61,141.58,0.70515153]
[1768297661014,3.19456896,141.62,141.59,0.70515153]
[1768297661425,3.19456896,141.62,141.58,7.76821541]
[1768297662024,3.19456896,141.62,141.58,0.70515153]
[1768297662328,7.1355844,141.63,141.58,0.70515153]
[1768297662524,3.19456896,141.61,141.58,0.70515153]
[1768297662819,7.1355844,141.63,141.59,0.70515153]
[1768297663025,3.19456896,141.62,141.59,0.70515153]
[1768297663529,7.1355844,141.63,141.59,0.70515153]
[1768297663715,3.19456896,141.62,141.59,0.70515153]
[1768297663919,10.25574285,141.62,141.59,0.70515153]
[1768297664932,0.07477351,141.63,141.59,0.70515153]
[1768297665108,10.3300876,141.63,141.58,10.2574059]
[1768297665705,0.07477351,141.63,141.6,7.06214689]
[1768297665922,0.07477351,141.63,141.59,7.06248374]
[1768297665923,3.26934247,141.63,141.59,7.06248374]
[1768297666632,0.07477351,141.63,141.59,7.06248374]
[1768297667007,3.26934247,141.63,141.59,7.06248374]
[1768297667909,0.07477351,141.63,141.59,7.06248374]
[1768297668112,0.07477351,141.63,141.59,3.19456896]
[1768297668424,1e-08,141.63,141.61,3.19456896]
[1768297669415,1e-08,141.63,141.59,13.60515153]
[1768297669622,1e-08,141.63,141.6,3.19456896]
[1768297669924,7.15928749,141.66,141.6,3.19456896]
[1768297669925,0.1,141.66,141.63,0.70515153]
[1768297670121,0.1,141.67,141.66,0.70515153]
[1768297673239,1e-08,141.67,141.66,7.76430725]
[1768297673418,1e-08,141.67,141.66,10.95887621]
[1768297673923,12.88,141.73,141.67,0.70515153]
[1768297674116,3.19456896,141.71,141.69,0.70515153]
[1768297675236,0.099,141.73,141.67,0.70515153]
[1768297675411,3.19456896,141.7,141.67,0.70515153]
[1768297676315,7.15615709,141.72,141.67,0.70515153]
[1768297676530,3.19456896,141.71,141.67,10.95832962]
[1768297676735,3.19456896,141.71,141.68,0.70515153]
[1768297677113,7.05601225,141.73,141.68,0.70515153]
[1768297677437,3.19456896,141.71,141.68,0.70515153]
[1768297679763,7.05618624,141.72,141.68,0.70515153]
[1768297679934,3.19456896,141.71,141.68,0.70515153]
[1768297680636,10.2507552,141.72,141.68,0.70515153]
[1768297680939,3.19456896,141.71,141.68,0.70515153]
[1768297683041,3.19456896,141.71,141.66,12.88]
[1768297683042,3.19456896,141.69,141.66,12.88]
[1768297683218,0.09998019,141.69,141.58,0.70515153]
[1768297683419,3.19456896,141.65,141.61,0.70515153]
[1768297683627,3.19456896,141.64,141.62,0.70515153]
[1768297683843,3.19456896,141.65,141.62,0.70515153]
[1768297684038,3.19456896,141.64,141.62,0.70515153]
[1768297684751,3.19456896,141.65,141.62,0.70515153]
[1768297685950,0.09903844,141.64,141.61,7.06120811]
[1768297686447,0.09903844,141.64,141.59,34.39809618]
[1768297686448,3.19456896,141.64,141.59,34.39809618]
[1768297686637,3.19456896,141.64,141.61,0.66772928]
[1768297686835,12.88,141.67,141.63,0.66772928]
[1768297687027,7.05853102,141.68,141.63,0.66772928]
[1768297687223,19.9378389,141.69,141.64,3.86229824]
[1768297687429,2.04232622,141.68,141.65,0.66772928]
[1768297688038,19.9378389,141.69,141.65,0.66772928]
[1768297688236,2.04232622,141.68,141.65,0.66772928]
[1768297688753,2.04232622,141.67,141.65,0.66772928]
[1768297689156,19.9378389,141.69,141.65,0.66772928]
[1768297689355,2.04232622,141.76,141.67,0.66772928]
[1768297689554,12.88,141.72,141.67,0.66772928]
[1768297689729,2.04232622,141.7,141.67,0.66772928]
[1768297689925,2.04232622,141.71,141.67,0.66772928]
[1768297690130,2.04232622,141.71,141.68,0.66772928]
[1768297691459,7.05611794,141.73,141.68,7.72588411]
[1768297691755,2.04232622,141.71,141.68,7.72588411]
[1768297692160,2.04232622,141.71,141.68,0.66772928]
[1768297692359,9.09904251,141.71,141.68,0.66772928]
[1768297692657,9.09904251,141.71,141.67,0.66772928]
[1768297693160,2.04232622,141.7,141.67,0.66772928]
[1768297695057,7.05566923,141.73,141.67,7.7263775]
[1768297695260,2.04232622,141.71,141.67,7.7263775]
[1768297695455,2.04232622,141.71,141.68,0.67120758]
[1768297696936,2.04232622,141.72,141.68,0.67120758]
[1768297698356,7.05566923,141.73,141.69,0.67120758]
[1768297698357,9.09799545,141.73,141.69,0.67120758]
[1768297699138,2.04232622,141.72,141.69,0.67120758]
[1768297699561,7.05467744,141.75,141.71,0.67120758]
[1768297699742,15.9205117,141.77,141.74,0.67120758]
[1768297699942,15.9205117,141.77,141.74,0.61120758]
[1768297700142,17.96283792,141.77,141.74,0.61120758]
[1768297700543,25.01661849,141.77,141.74,0.61120758]
[1768297700844,25.01661849,141.77,141.72,2.04232622]
[1768297701070,22.97429227,141.77,141.71,9.09859803]
[1768297701256,2.04232622,141.76,141.71,9.09859803]
[1768297701444,2.04232622,141.74,141.7,7.056983]
[1768297701654,2.04232622,141.75,141.7,9.09930922]
[1768297701850,2.04232622,141.75,141.71,0.67120758]
[1768297702458,9.09701083,141.75,141.71,0.67120758]
[1768297703145,9.09701083,141.75,141.72,0.67120758]
[1768297703346,0.06,141.74,141.71,2.04232622]
[1768297704156,0.06,141.74,141.71,9.0986512]
[1768297704751,0.06,141.73,141.7,7.05702253]
[1768297706774,2.04232622,141.74,141.71,0.67120758]
[1768297708246,7.11417607,141.76,141.71,0.67120758]
[1768297708452,2.04232622,141.75,141.71,0.67120758]
[1768297709155,2.04232622,141.74,141.71,0.67120758]
[1768297709790,7.05483777,141.75,141.71,0.67120758]
[1768297710081,2.04232622,141.74,141.71,0.67120758]
[1768297710249,2.04232622,141.73,141.71,0.67120758]
[1768297710452,2.04232622,141.72,141.69,0.67120758]
[1768297711783,2.04232622,141.7,141.67,0.67120758]
[1768297711987,2.04232622,141.69,141.67,0.67120758]
[1768297712983,9.0999218,141.7,141.67,0.67120758]
[1768297713162,2.04232622,141.69,141.67,0.67120758]
[1768297713361,7.05678164,141.71,141.67,0.67120758]
[1768297713680,2.04232622,141.69,141.67,0.67120758]
[1768297714367,1.13153267,141.69,141.67,0.67120758]
[1768297716586,9.09955579,141.7,141.67,0.67120758]
[1768297717476,2.04232622,141.7,141.67,0.67120758]
[1768297718169,48.15429941,141.75,141.7,0.72383876]
[1768297718170,12.88,141.75,141.7,0.72383876]
[1768297718360,2.04232622,141.74,141.7,0.72383876]
[1768297718563,19.93484701,141.75,141.7,0.72383876]
[1768297718759,7.21351617,141.78,141.73,0.72383876]
[1768297718994,0.06,141.76,141.74,2.04232622]
[1768297719167,0.06,141.76,141.71,0.72383876]
[1768297719375,17.96283792,141.77,141.73,0.72383876]
[1768297720289,17.96283792,141.77,141.73,7.77935761]
[1768297720968,18.02283792,141.77,141.73,7.77935761]
[1768297721168,15.9805117,141.77,141.73,7.77935761]
[1768297721364,25.0766174,141.77,141.73,0.72383876]
[1768297721566,18.02283792,141.77,141.73,7.77939923]
[1768297721778,17.96283792,141.77,141.74,0.72383876]
[1768297722384,25.01654227,141.77,141.72,9.82221323]
[1768297722687,25.01654227,141.77,141.73,0.72383876]
[1768297722989,2.04232622,141.76,141.73,0.72383876]
[1768297723492,2.04232622,141.76,141.73,7.77943896]
[1768297723785,2.04232622,141.76,141.72,7.77992517]
[1768297723991,2.04232622,141.76,141.72,0.72383876]
[1768297723992,2.04232622,141.74,141.72,0.72383876]
[1768297724198,2.04232622,141.73,141.72,0.72383876]
[1768297724373,0.06,141.76,141.72,0.72383876]
[1768297724580,2.04232622,141.74,141.72,0.72383876]
[1768297725167,2.04232622,141.75,141.71,0.72383876]
[1768297725484,2.04232622,141.75,141.72,0.72383876]
[1768297725865,0.7990864,141.82,141.77,0.565]
[1768297726065,0.7990864,141.82,141.78,2.50732622]
[1768297726066,0.1,141.82,141.78,2.50732622]
[1768297726976,0.1,141.82,141.78,9.56022246]
[1768297727183,0.6990864,141.81,141.78,9.09522246]
[1768297727577,0.1,141.82,141.79,0.365]
[1768297729193,0.1,141.82,141.79,7.41754887]
[1768297731689,0.1,141.82,141.79,0.365]
[1768297732203,0.1,141.82,141.79,7.41767377]
[1768297733003,2.14232622,141.82,141.77,9.46063579]
[1768297733213,2.14232622,141.82,141.78,7.05317584]
[1768297733502,2.04232622,141.81,141.77,7.41858283]
[1768297735013,2.84141262,141.82,141.77,9.46090905]
[1768297735306,0.7990864,141.82,141.78,2.04232622]
[1768297735501,0.7990864,141.82,141.78,9.4603039]
[1768297735691,0.7990864,141.82,141.78,7.41797768]
[1768297735692,0.1,141.82,141.78,7.41797768]
[1768297735891,0.1,141.82,141.79,2.04232622]
[1768297736284,0.1,141.82,141.78,9.4603039]
[1768297737400,0.7990864,141.82,141.78,9.4603039]
[1768297738311,2.74141262,141.8,141.75,2.40732622]
[1768297738496,2.74141262,141.79,141.74,9.09744662]
[1768297739112,2.74141262,141.79,141.75,7.05455883]
[1768297740017,0.6990864,141.78,141.74,7.05517144]
[1768297740192,0.6990864,141.77,141.74,7.05517144]
[1768297741813,7.05275407,141.79,141.7,18.00744912]
[1768297741814,0.6990864,141.75,141.7,18.00744912]
[1768297742020,0.6990864,141.75,141.71,2.04232622]
[1768297742616,0.6990864,141.75,141.7,20.04977534]
[1768297742994,0.6990864,141.75,141.71,9.09899124]
[1768297746703,0.66908641,141.75,141.71,9.09899124]
[1768297746892,0.64062609,141.75,141.71,9.09899124]
[1768297747224,0.64062609,141.75,141.71,9.52245155]
[1768297749422,0.64062609,141.75,141.71,10.66811378]
[1768297751721,0.64062609,141.75,141.71,7.48012533]
[1768297751914,0.64062609,141.75,141.71,10.66811378]
[1768297752497,0.64062609,141.75,141.7,18.06590943]
[1768297752803,0.64062609,141.75,141.71,3.18798845]
[1768297753429,0.64062609,141.75,141.7,18.06590943]
[1768297753603,0.64062609,141.75,141.72,7.05616709]
[1768297754900,0.64062609,141.75,141.72,10.24415554]
[1768297755319,12.88,141.79,141.74,0.42346031]
[1768297755623,0.6607078,141.8,141.76,3.18798845]
[1768297755922,0.6607078,141.79,141.75,3.61144876]
[1768297756097,0.6607078,141.79,141.75,3.18798845]
[1768297756297,0.6607078,141.79,141.73,37.574833]
[1768297756518,0.46117357,141.77,141.74,3.18798845]
[1768297756719,3.18798845,141.78,141.75,0.66076283]
[1768297757107,3.84869625,141.79,141.75,0.66076283]
[1768297757434,3.18798845,141.79,141.75,0.66076283]
[1768297757801,3.18798845,141.79,141.76,0.66076283]
[1768297758006,0.7607078,141.82,141.78,0.66076283]
[1768297758203,3.94869625,141.82,141.78,0.66076283]
[1768297758518,3.94869625,141.82,141.78,3.84875128]
[1768297759300,3.94869625,141.82,141.79,7.05268354]
[1768297760618,3.18798845,141.81,141.79,7.05268354]
[1768297760933,3.18798845,141.8,141.77,7.05348579]
[1768297761103,3.18798845,141.8,141.77,7.71424862]
[1768297763127,5.72541639,141.79,141.75,0.66076283]
[1768297763312,3.18798845,141.78,141.75,0.66076283]
[1768297763724,3.18798845,141.79,141.76,0.66076283]
[1768297764529,3.18798845,141.79,141.76,7.71492421]
[1768297765335,3.18798845,141.79,141.75,10.90326832]
[1768297765523,10.70149305,141.8,141.75,10.90326832]
[1768297766030,7.5135046,141.8,141.76,3.18798845]
[1768297766227,10.70149305,141.8,141.76,3.18798845]
[1768297766912,3.64916202,141.8,141.76,10.90276167]
[1768297767226,0.46117357,141.8,141.76,10.90276167]
[1768297767527,3.64916202,141.8,141.76,10.90276167]
[1768297768529,3.64916202,141.8,141.76,7.71477322]
[1768297769231,7.05182421,141.81,141.76,7.71477322]
[1768297769232,0.7607078,141.82,141.78,3.84875128]
[1768297769434,5.26494731,141.81,141.78,3.84875128]
[1768297769633,0.7607078,141.82,141.78,3.84875128]
[1768297769934,3.94869625,141.82,141.78,0.66076283]
[1768297770137,0.7607078,141.82,141.78,0.66076283]
[1768297770311,5.26553811,141.81,141.78,0.66076283]
[1768297770517,0.7607078,141.82,141.78,3.84875128]
[1768297770730,5.26553831,141.81,141.78,10.90181344]
[1768297770936,0.7607078,141.82,141.78,10.90181344]
[1768297771125,5.26553708,141.81,141.78,10.90181344]
[1768297771431,0.1,141.82,141.79,0.66076283]
[1768297772621,0.1,141.82,141.79,7.71310652]
[1768297774028,0.1,141.82,141.79,10.90109497]
[1768297775032,0.1,141.82,141.79,7.71310652]
[1768297776340,0.1,141.82,141.79,10.90109497]
[1768297777638,0.1,141.82,141.79,0.66076283]
[1768297777838,0.46314896,141.81,141.77,7.74268593]
[1768297778017,0.1,141.82,141.79,7.74163479]
[1768297778216,0.1,141.82,141.79,10.92962324]
[1768297779541,0.1,141.82,141.8,0.68912275]
[1768297780537,12.98,141.82,141.79,10.92962324]
[1768297781650,0.1,141.82,141.79,10.92962324]
[1768297781827,12.98,141.82,141.79,10.92962324]
[1768297784148,13.41874246,141.82,141.79,10.24050049]
[1768297784449,0.1,141.82,141.8,3.8771112]
[1768297784623,0.78336548,141.84,141.81,3.18798845]
[1768297785751,0.78336548,141.84,141.81,3.8771112]
[1768297786430,0.78336548,141.84,141.8,10.92896961]
[1768297786939,3.62673091,141.83,141.79,10.24032964]
[1768297787246,0.68091925,141.82,141.79,10.24032964]
[1768297788829,0.68091925,141.82,141.79,10.92945239]
[1768297789931,0.68091925,141.82,141.79,7.05234119]
[1768297790352,0.68091925,141.82,141.78,3.8771112]
[1768297790528,0.68091925,141.82,141.79,7.05266569]
[1768297790727,13.56091925,141.82,141.79,7.05266569]
[1768297791966,0.44116423,141.81,141.79,7.05266569]
[1768297792265,12.88,141.82,141.79,7.05266569]
[1768297792445,12.88,141.82,141.79,10.24065414]
[1768297796757,12.88,141.82,141.79,7.05266569]
[1768297798261,13.31874246,141.82,141.79,7.05266569]
[1768297798954,13.31874246,141.82,141.79,7.74178844]
[1768297800239,0.68091925,141.81,141.78,0.68912275]
[1768297800440,0.44116423,141.8,141.76,3.8771112]
[1768297800654,0.67617186,141.77,141.7,0.68912275]
[1768297800861,0.68336548,141.81,141.77,0.68912275]
[1768297801034,5.71893324,141.8,141.77,0.68912275]
[1768297801240,3.8689077,141.79,141.75,0.68912275]
[1768297801565,0.6785217,141.77,141.73,3.8771112]
[1768297801738,0.6785217,141.77,141.74,0.68912275]
[1768297802159,0.6785217,141.77,141.73,10.93248548]
[1768297803263,0.6785217,141.77,141.73,7.74449703]
[1768297803468,0.44353781,141.76,141.73,0.68912275]
[1768297803763,0.44353781,141.76,141.73,3.8771112]
[1768297804561,0.44353781,141.76,141.73,0.68912275]
[1768297804890,0.44353781,141.76,141.73,3.8771112]
[1768297805241,10.94506519,141.77,141.73,10.93273714]
[1768297806663,10.94506519,141.77,141.73,0.68912275]
[1768297806963,10.94506519,141.77,141.73,3.8771112]
[1768297808348,7.75707674,141.77,141.73,3.8771112]
[1768297808849,0.70332944,141.77,141.73,10.93272644]
[1768297809259,0.70332944,141.77,141.74,3.18798845]
[1768297809559,0.70332944,141.77,141.74,2.03952539]
[1768297809758,0.70332944,141.77,141.73,7.74473799]
[1768297809961,0.70332944,141.77,141.74,2.03952539]
[1768297813586,21.97289775,141.78,141.75,0.67907161]
[1768297813587,12.88,141.78,141.75,0.67907161]
[1768297813888,13.29897814,141.78,141.75,0.67907161]
[1768297815185,0.6763744,141.8,141.77,0.71389179]
[1768297815383,0.44566363,141.8,141.76,2.75341718]
[1768297815685,0.44566363,141.8,141.77,0.71389179]
[1768297817063,0.6763744,141.81,141.77,9.80702551]
[1768297817261,0.6763744,141.83,141.79,0.71389179]
[1768297817569,0.6763744,141.83,141.8,2.75341718]
[1768297817987,0.1,141.84,141.8,2.75341718]
[1768297818195,0.1,141.84,141.81,0.71389179]
[1768297818393,7.15019764,141.84,141.81,0.71389179]
[1768297819893,0.1,141.84,141.81,0.71389179]
[1768297821078,7.15028133,141.84,141.81,0.71389179]
[1768297822172,0.1,141.84,141.81,0.71389179]
[1768297823666,0.1,141.84,141.81,2.75341718]
[1768297825999,7.15023107,141.84,141.81,2.75341718]
[1768297828305,7.15023107,141.84,141.81,0.71389179]
[1768297828474,7.15023107,141.84,141.81,2.75341718]
[1768297831302,2.71359268,141.83,141.79,0.71389179]
[1768297831504,0.44794767,141.82,141.76,0.71389179]
[1768297831684,2.48518902,141.78,141.75,0.71389179]
[1768297831882,0.6763744,141.8,141.75,0.71389179]
[1768297832206,13.5563744,141.81,141.77,2.75341718]
[1768297832904,15.59589979,141.81,141.77,2.75341718]
[1768297833602,22.64794472,141.81,141.77,2.75341718]
[1768297834501,22.64794472,141.81,141.77,0.71389179]
[1768297835082,0.44566363,141.8,141.77,0.71389179]
[1768297835502,0.44566363,141.8,141.76,2.74976909]
[1768297836394,2.48518902,141.8,141.76,2.74976909]
[1768297836588,0.67406729,141.79,141.76,0.7102437]
[1768297837284,9.51318848,141.8,141.76,0.7102437]
[1768297838390,7.47366309,141.8,141.76,0.7102437]
[1768297838588,2.03952539,141.79,141.76,0.7102437]
[1768297838907,9.51318848,141.8,141.76,0.7102437]
[1768297839095,2.03952539,141.79,141.76,0.7102437]
[1768297839596,7.47366309,141.8,141.76,0.7102437]
[1768297839805,9.51318848,141.8,141.76,0.7102437]
[1768297840184,9.79221573,141.81,141.77,0.7102437]
[1768297840503,22.67221573,141.81,141.77,0.7102437]
[1768297840707,9.79221573,141.81,141.77,0.7102437]
[1768297844305,2.74052278,141.83,141.79,0.7102437]
[1768297844504,0.70099739,141.83,141.79,0.7102437]
[1768297844797,15.72052278,141.84,141.79,0.7102437]
[1768297845322,9.09040484,141.83,141.79,0.7102437]
[1768297846707,7.05087945,141.83,141.79,0.7102437]
[1768297846911,9.09040484,141.83,141.79,0.7102437]
[1768297847303,7.05087945,141.83,141.79,0.7102437]
[1768297849512,7.47216632,141.83,141.79,0.7102437]
[1768297849814,7.05087945,141.83,141.8,0.7102437]
[1768297850022,20.73137022,141.84,141.8,0.7102437]
[1768297851618,20.03037283,141.84,141.8,0.7102437]
[1768297852009,12.98,141.84,141.81,0.7102437]
[1768297852212,0.1,141.84,141.82,0.7102437]
[1768297852522,0.69820029,141.83,141.81,2.03952539]
[1768297854005,0.69820029,141.83,141.81,9.09113476]
[1768297854194,0.80099739,141.84,141.82,2.03952539]
[1768297854393,0.07479005,141.84,141.83,0.7102437]
[1768297855506,0.07479005,141.84,141.81,0.7102437]
[1768297855910,0.07479005,141.84,141.82,0.7102437]
[1768297857923,0.07479005,141.84,141.81,0.7102437]
[1768297858817,7.47746452,141.83,141.79,0.7102437]
[1768297859012,9.51698991,141.83,141.79,0.7102437]
[1768297859629,7.47746452,141.83,141.79,0.7102437]
[1768297860224,9.51698991,141.83,141.79,0.7102437]
[1768297860723,0.69277196,141.82,141.79,0.7102437]
[1768297860909,9.09021988,141.83,141.79,7.76289536]
[1768297861225,9.09021988,141.83,141.79,0.7102437]
[1768297862924,9.79121727,141.83,141.79,0.7102437]
[1768297863436,7.05069449,141.83,141.79,0.7102437]
[1768297863740,7.05069449,141.83,141.8,0.7102437]
[1768297864328,7.44228137,141.83,141.8,0.7102437]
[1768297869341,0.39465004,141.81,141.76,7.73344376]
[1768297869515,0.66487077,141.8,141.76,0.67973485]
[1768297869831,0.66487077,141.8,141.77,0.67973485]
[1768297872438,23.09758438,141.81,141.76,10.23982241]
[1768297872618,23.09758438,141.81,141.77,0.67973485]
[1768297872932,10.23758438,141.81,141.76,10.23982241]
[1768297873120,16.06568201,141.83,141.78,3.18568201]
[1768297873323,16.43883724,141.83,141.78,3.18568201]
[1768297874235,23.48955341,141.83,141.78,10.23857529]
[1768297874915,23.48955341,141.83,141.79,0.67499753]
[1768297875107,23.48955341,141.83,141.78,10.23857529]
[1768297875308,0.68049947,141.82,141.77,7.05367849]
[1768297875507,0.68049947,141.81,141.77,10.2393605]
[1768297875712,0.68049947,141.81,141.77,7.05367849]
[1768297875913,0.68049947,141.81,141.77,10.2393605]
[1768297876218,19.93071617,141.83,141.79,3.18568201]
[1768297876219,0.68049947,141.83,141.79,3.18568201]
[1768297877324,0.68049947,141.83,141.79,10.23813277]
[1768297877719,0.68049947,141.83,141.79,3.18568201]
[1768297878418,0.68049947,141.83,141.77,17.63419623]
[1768297878638,0.68049947,141.83,141.79,3.18568201]
[1768297879021,0.68049947,141.83,141.77,17.63419623]
[1768297879332,0.68049947,141.83,141.79,10.80673392]
[1768297879517,0.68049947,141.83,141.79,3.18568201]
[1768297880845,0.68049947,141.83,141.79,7.05245076]
[1768297881017,0.68049947,141.83,141.79,10.23813277]
[1768297881217,0.68049947,141.83,141.79,3.18568201]
[1768297882324,0.68049947,141.82,141.77,7.05351432]
[1768297882526,0.68049947,141.82,141.78,10.23853564]
[1768297883619,0.68049947,141.82,141.79,3.18568201]
[1768297884249,0.65049948,141.82,141.79,3.18568201]
[1768297885649,0.65049948,141.82,141.79,10.23832455]
[1768297888248,0.65049948,141.82,141.78,0.02999999]
[1768297888455,0.65049948,141.82,141.79,3.18568201]
[1768297889163,0.65049948,141.82,141.79,3.215682]
[1768297889362,0.1,141.86,141.83,3.18568201]
[1768297889540,0.07479328,141.86,141.84,0.60570942]
[1768297889728,0.07479328,141.86,141.85,3.18568201]
[1768297890224,0.07479328,141.86,141.84,3.79139143]
[1768297890838,0.07479328,141.86,141.85,3.18568201]
[1768297893747,1e-08,141.86,141.85,10.84109181]